fUST/lending_fUST_20250407
["ID","MTS","AMOUNT","RATE_DAILY","PERIOD"]
[357266937,1743966644186,-1710.26,0.00043835,120]
[357266938,1743966644196,-1710.26,0.00043835,120]
[357266939,1743966644206,-1710.26,0.00043835,120]
[357266940,1743966644215,-1710.26,0.00043835,120]
[357266941,1743966644225,-1710.26,0.00043835,120]
[357266942,1743966644235,-1710.26,0.00043835,120]
[357266943,1743966644244,-1710.26,0.00043835,120]
[357266944,1743966644253,-1710.26,0.00043835,120]
[357266945,1743966644262,-1710.26,0.00043835,120]
[357266946,1743966644270,-1710.26,0.00043835,120]
[357266947,1743966644278,-1710.26,0.00043835,120]
[357266948,1743966644288,-1710.26,0.00043835,120]
[357266949,1743966644297,-1710.26,0.00043835,120]
[357266950,1743966644307,-1710.26,0.00043835,120]
[357266951,1743966644316,-1710.26,0.00043835,120]
[357266952,1743966644324,-1710.26,0.00043835,120]
[357266953,1743966644333,-1710.26,0.00043835,120]
[357266954,1743966644343,-1710.26,0.00043835,120]
[357266955,1743966644352,-1710.26,0.00043835,120]
[357266956,1743966644367,-1710.3133206,0.00043835,120]
[357266957,1743966644377,-424.32279055,0.00043835,20]
[357266958,1743966644387,-500.0,0.00043835,120]
[357266959,1743966644396,-500.0,0.00043835,120]
[357266960,1743966644406,-500.0,0.00043835,120]
[357266961,1743966644415,-500.0,0.00043835,120]
[357266962,1743966644426,-500.0,0.00043835,120]
[357266963,1743966644435,-500.0,0.00043835,120]
[357266964,1743966644446,-500.0,0.00043835,120]
[357266965,1743966644456,-500.0,0.00043835,120]
[357266966,1743966644466,-500.0,0.00043835,120]
[357266967,1743966644475,-244.55,0.00043835,120]
[357266968,1743966644485,-500.0,0.00043835,2]
[357266969,1743966644496,-500.0,0.00043835,2]
[357266970,1743966644505,-500.0,0.00043835,2]
[357266971,1743966644515,-500.0,0.00043835,2]
[357266972,1743966644524,-500.0,0.00043835,2]
[357266973,1743966644534,-500.0,0.00043835,2]
[357266974,1743966644543,-500.0,0.00043835,2]
[357266975,1743966644553,-500.0,0.00043835,2]
[357266976,1743966644562,-500.0,0.00043835,2]
[357266977,1743966644571,-500.0,0.00043835,2]
[357266978,1743966644581,-500.0,0.00043835,2]
[357266979,1743966644591,-500.0,0.00043835,2]
[357266980,1743966644600,-500.0,0.00043835,2]
[357266981,1743966644612,-500.0,0.00043835,2]
[357266982,1743966644622,-235.72610168,0.00043835,2]
[357266983,1743966644631,-500.0,0.00043835,120]
[357266984,1743966644641,-500.0,0.00043835,120]
[357266985,1743966644651,-500.0,0.00043835,120]
[357266986,1743966644661,-500.0,0.00043835,120]
[357266987,1743966644670,-500.0,0.00043835,120]
[357266988,1743966644679,-500.0,0.00043835,120]
[357266989,1743966644693,-500.0,0.00043835,120]
[357266990,1743966644703,-500.0,0.00043835,120]
[357266991,1743966644712,-500.0,0.00043835,120]
[357266992,1743966644721,-500.0,0.00043835,120]
[357266993,1743966644731,-500.0,0.00043835,120]
[357266994,1743966644740,-525.45184906,0.00043835,120]
[357266995,1743966644750,-233.98102893,0.00043835,120]
[357266996,1743966644759,-1000.0,0.00043835,120]
[357266997,1743966644769,-500.0,0.00043835,120]
[357266998,1743966644779,-500.0,0.00043835,120]
[357266999,1743966644788,-500.0,0.00043835,120]
[357267000,1743966644797,-500.0,0.00043835,120]
[357267001,1743966644807,-500.0,0.00043835,120]
[357267002,1743966644816,-500.0,0.00043835,120]
[357267003,1743966644825,-500.0,0.00043835,120]
[357267004,1743966644834,-500.0,0.00043835,120]
[357267005,1743966644844,-500.0,0.00043835,120]
[357267006,1743966644854,-514.66793608,0.00043835,120]
[357267007,1743966644867,-1000.0,0.00043835,3]
[357267008,1743966644876,-2000.0,0.00043836,10]
[357267009,1743966644885,-1000.0,0.00043863,120]
[357267010,1743966644895,-488.58,0.0004389,120]
[357267011,1743966644905,-500.0,0.000439,120]
[357267012,1743966644914,-1000.0,0.00044109,3]
[357267013,1743966644924,-542.0,0.00044277,2]
[357267014,1743966644933,-1478.0,0.00044277,2]
[357267015,1743966644943,-553.362,0.00044277,2]
[357267016,1743966644954,-4892.9141581,0.00044314,18]
[357267017,1743966644965,-1000.0,0.00044383,3]
[357267018,1743966644975,-357.6762453,0.00044563,2]
[357267019,1743966644986,-1000.0,0.00044657,3]
[357267020,1743966644995,-2027.15,0.00044751,30]
[357267021,1743966645119,-200.0,0.00044804,120]
[357267022,1743966645145,-1890.9304668,0.00044872,4]
[357267023,1743966645155,-1000.0,0.00044931,3]
[357267024,1743966645165,-151.0,0.00045,120]
[357267025,1743966645174,-80747.17350793,0.00045,30]
[357267026,1743966645218,-1245.49622947,0.00045,30]
[357267027,1743966645230,-122580.2502626,0.00045,30]
[357267028,1743966645240,-151.0,0.00045,120]
[357267029,1743966645250,-151.0,0.00045,120]
[357267030,1743966645260,-151.0,0.00045,120]
[357267031,1743966645270,-151.0,0.00045,120]
[357267032,1743966645279,-165.819262,0.00045,120]
[357267033,1743966645289,-165.819262,0.00045,120]
[357267034,1743966645299,-419.28457398,0.00045,30]
[357267035,1743966645309,-151.649589,0.00045,120]
[357267036,1743966645319,-151.0,0.00045,120]
[357267037,1743966645329,-151.0,0.00045,120]
[357267038,1743966645339,-151.0,0.00045,120]
[357267039,1743966645349,-151.0,0.00045,120]
[357267040,1743966645362,-151.0,0.00045,120]
[357267041,1743966645371,-151.0,0.00045,120]
[357267042,1743966645381,-151.0,0.00045,120]
[357267043,1743966645391,-151.0,0.00045,120]
[357267044,1743966645400,-151.0,0.00045,120]
[357267045,1743966645410,-151.0,0.00045,120]
[357267046,1743966645419,-151.0,0.00045,120]
[357267047,1743966645429,-157.465261,0.00045,120]
[357267048,1743966645439,-160.0,0.00045124,4]
[357267049,1743966645448,-200.0,0.0004517,70]
[357267050,1743966645458,-4892.9141581,0.00045176,19]
[357267051,1743966645467,-500.0,0.00045205,7]
[357267052,1743966645478,-7762.76,0.00045205,120]
[357267053,1743966645488,-1000.0,0.00045205,3]
[357267054,1743966645497,-153.0,0.00045425,30]
[357267055,1743966645507,-153.0,0.00045425,30]
[357267056,1743966645517,-153.0,0.00045425,30]
[357267057,1743966645527,-153.0,0.00045425,30]
[357267058,1743966645537,-153.0,0.00045425,30]
[357267059,1743966645548,-500.0,0.00045479,9]
[357267060,1743966645559,-7762.76,0.00045479,120]
[357267061,1743966645569,-1000.0,0.00045479,3]
[357267062,1743966645579,-500.0,0.00045506,30]
[357267063,1743966645589,-800.0,0.00045572,14]
[357267064,1743966645598,-500.0,0.00045753,11]
[357267065,1743966645608,-7762.76,0.00045753,120]
[357267066,1743966645618,-1000.0,0.00045753,3]
[357267067,1743966645628,-500.0,0.00045765,60]
[357267068,1743966645638,-508.5537272,0.0004581,60]
[357267069,1743966645647,-642.12685972,0.000459,100]
[357267070,1743966645657,-800.0,0.00045906,14]
[357267071,1743966645672,-500.0,0.00045928,60]
[357267072,1743966645682,-600.0,0.00045932,2]
[357267073,1743966645692,-155.17,0.00046,39]
[357267074,1743966645703,-155.17,0.00046,39]
[357267075,1743966645713,-155.17,0.00046,39]
[357267076,1743966645722,-155.17,0.00046,39]
[357267077,1743966645732,-155.17,0.00046,39]
[357267078,1743966645743,-155.17,0.00046,39]
[357267079,1743966645752,-155.17,0.00046,39]
[357267080,1743966645762,-4456.62774758,0.00046,61]
[357267081,1743966645772,-177.371861,0.00046024,2]
[357267082,1743966645781,-157.926232,0.00046024,2]
[357267083,1743966645791,-500.0,0.00046027,13]
[357267084,1743966645800,-7762.76,0.00046027,120]
[357267085,1743966645809,-1000.0,0.00046027,3]
[357267086,1743966645818,-200.0,0.00046036,120]
[357267087,1743966645828,-4892.9141581,0.00046038,19]
[357267088,1743966645838,-1307.81393074,0.00046088,120]
[357267089,1743966645851,-4576.49923949,0.00046088,120]
[357267090,1743966645862,-1000.0,0.00046124,120]
[357267091,1743966645872,-151.0,0.00046126,120]
[357267092,1743966645881,-151.0,0.00046126,30]
[357267093,1743966645891,-151.0,0.00046126,120]
[357267094,1743966645900,-151.0,0.00046126,120]
[357267095,1743966645909,-151.0,0.00046126,120]
[357267096,1743966645919,-151.0,0.00046126,120]
[357267097,1743966645929,-151.718058,0.00046126,30]
[357267098,1743966645938,-151.0,0.00046126,120]
[357267099,1743966645948,-151.0,0.00046126,120]
[357267100,1743966645957,-151.0,0.00046126,120]
[357267101,1743966645967,-151.0,0.00046126,120]
[357267102,1743966645976,-151.0,0.00046126,120]
[357267103,1743966645986,-151.0,0.00046126,120]
[357267104,1743966645995,-151.0,0.00046126,120]
[357267105,1743966646005,-151.0,0.00046126,120]
[357267106,1743966646015,-151.0,0.00046126,120]
[357267107,1743966646025,-151.0,0.00046126,120]
[357267108,1743966646035,-210.990405,0.00046126,120]
[357267109,1743966646045,-151.0,0.00046126,120]
[357267110,1743966646055,-151.0,0.00046126,120]
[357267111,1743966646064,-151.0,0.00046126,120]
[357267112,1743966646074,-151.0,0.00046126,120]
[357267113,1743966646083,-151.0,0.00046126,120]
[357267114,1743966646093,-151.0,0.00046126,120]
[357267115,1743966646103,-151.0,0.00046126,120]
[357267116,1743966646115,-151.0,0.00046126,120]
[357267117,1743966646125,-151.0,0.00046126,120]
[357267118,1743966646135,-151.0,0.00046126,120]
[357267119,1743966646144,-151.0,0.00046126,120]
[357267120,1743966646154,-151.0,0.00046126,120]
[357267121,1743966646164,-151.0,0.00046126,120]
[357267122,1743966646174,-151.0,0.00046126,120]
[357267123,1743966646184,-151.0,0.00046126,120]
[357267124,1743966646194,-289.736524,0.00046126,120]
[357267125,1743966646205,-151.0,0.00046154,120]
[357267126,1743966646215,-151.0,0.00046154,120]
[357267127,1743966646225,-151.0,0.00046154,120]
[357267128,1743966646235,-151.0,0.00046154,120]
[357267129,1743966646245,-151.0,0.00046154,120]
[357267130,1743966646254,-198.043148,0.00046154,120]
[357267131,1743966646264,-183.088789,0.00046154,120]
[357267132,1743966646274,-183.088789,0.00046154,120]
[357267134,1743966646284,-151.0,0.00046154,2]
[357267136,1743966646293,-151.0,0.00046154,120]
[357267137,1743966646303,-279.791153,0.00046154,120]
[357267138,1743966646313,-151.0,0.00046155,120]
[357267139,1743966646325,-151.0,0.00046155,120]
[357267140,1743966646335,-151.0,0.00046155,30]
[357267141,1743966646344,-151.0,0.00046155,30]
[357267142,1743966646354,-151.0,0.00046155,120]
[357267144,1743966646368,-151.0,0.00046155,120]
[357267146,1743966646378,-151.0,0.00046155,120]
[357267147,1743966646388,-151.0,0.00046155,120]
[357267149,1743966646398,-151.0,0.00046155,120]
[357267151,1743966646409,-151.0,0.00046155,120]
[357267153,1743966646420,-151.0,0.00046155,120]
[357267155,1743966646430,-157.871898,0.00046155,120]
[357267156,1743966646440,-151.0,0.00046155,120]
[357267158,1743966646450,-151.0,0.00046155,120]
[357267159,1743966646460,-151.0,0.00046155,120]
[357267160,1743966646471,-151.0,0.00046155,120]
[357267161,1743966646481,-262.71154,0.00046155,120]
[357267162,1743966646491,-151.0,0.00046155,120]
[357267163,1743966646501,-151.0,0.00046155,120]
[357267165,1743966646511,-151.0,0.00046155,120]
[357267167,1743966646520,-151.0,0.00046155,120]
[357267168,1743966646530,-151.0,0.00046155,120]
[357267169,1743966646540,-151.0,0.00046155,120]
[357267170,1743966646549,-151.0,0.00046155,120]
[357267172,1743966646559,-151.0,0.00046155,120]
[357267173,1743966646568,-212.932192,0.00046155,120]
[357267175,1743966646578,-165.819262,0.00046155,120]
[357267176,1743966646587,-165.819262,0.00046155,120]
[357267177,1743966646596,-165.819262,0.00046155,120]
[357267178,1743966646607,-165.819262,0.00046155,120]
[357267179,1743966646619,-165.819262,0.00046155,120]
[357267181,1743966646630,-165.819262,0.00046155,120]
[357267183,1743966646640,-165.819262,0.00046155,120]
[357267184,1743966646650,-165.819262,0.00046155,120]
[357267185,1743966646661,-165.819262,0.00046155,120]
[357267186,1743966646670,-165.819262,0.00046155,120]
[357267187,1743966646680,-165.819262,0.00046155,120]
[357267189,1743966646694,-165.819262,0.00046155,120]
[357267190,1743966646703,-165.819262,0.00046155,120]
[357267191,1743966646713,-165.819262,0.00046155,120]
[357267192,1743966646723,-165.819262,0.00046155,120]
[357267193,1743966646735,-165.819254,0.00046155,120]
[357267195,1743966646745,-2523.74366033,0.0004617,120]
[357267196,1743966646755,-6705.97512005,0.00046176,120]
[357267197,1743966646765,-1947.62609303,0.00046176,2]
[357267198,1743966646775,-500.0,0.00046199,60]
[357267199,1743966646785,-151.0,0.00046239,120]
[357267200,1743966646795,-152.593922,0.00046239,120]
[357267201,1743966646805,-151.0,0.00046239,120]
[357267202,1743966646815,-151.0,0.00046239,120]
[357267203,1743966646824,-151.0,0.00046239,120]
[357267204,1743966646834,-151.0,0.00046239,120]
[357267205,1743966646843,-193.504639,0.00046239,120]
[357267206,1743966646853,-151.0,0.00046239,120]
[357267207,1743966646866,-151.0,0.00046239,120]
[357267208,1743966646877,-357.0,0.00046239,30]
[357267209,1743966646887,-323.56009542,0.00046239,30]
[357267210,1743966646897,-175.56794436,0.00046239,30]
[357267211,1743966646907,-500.0,0.00046239,17]
[357267212,1743966646917,-500.0,0.00046239,17]
[357267213,1743966646927,-151.0,0.00046259,2]
[357267214,1743966646937,-151.0,0.00046259,2]
[357267215,1743966646947,-166.19633253,0.00046276,20]
[357267216,1743966646957,-151.0,0.00046276,120]
[357267217,1743966646967,-151.0,0.00046276,120]
[357267218,1743966646977,-151.0,0.00046276,120]
[357267219,1743966646987,-151.0,0.00046276,120]
[357267220,1743966647001,-151.0,0.00046276,120]
[357267221,1743966647011,-153.195418,0.00046276,120]
[357267222,1743966647022,-183.088789,0.00046276,120]
[357267223,1743966647033,-183.088789,0.00046276,120]
[357267224,1743966647044,-183.088789,0.00046276,120]
[357267225,1743966647055,-183.088789,0.00046276,120]
[357267226,1743966647065,-183.088789,0.00046276,120]
[357267227,1743966647075,-183.088789,0.00046276,120]
[357267228,1743966647086,-183.088789,0.00046276,120]
[357267229,1743966647098,-183.088789,0.00046276,120]
[357267230,1743966647112,-183.088789,0.00046276,120]
[357267231,1743966647122,-151.0,0.00046276,2]
[357267232,1743966647132,-183.088789,0.00046276,120]
[357267233,1743966647317,-151.0,0.00046276,2]
[357267234,1743966647328,-151.0,0.00046276,2]
[357267235,1743966647338,-151.0,0.00046276,2]
[357267236,1743966647348,-183.088789,0.00046276,120]
[357267237,1743966647362,-151.0,0.00046276,2]
[357267238,1743966647372,-183.088789,0.00046276,120]
[357267239,1743966647382,-151.0,0.00046276,2]
[357267240,1743966647394,-183.088789,0.00046276,120]
[357267241,1743966647404,-151.0,0.00046276,2]
[357267242,1743966647414,-183.088781,0.00046276,120]
[357267243,1743966647424,-500.0,0.00046276,20]
[357267244,1743966647434,-151.0,0.00046276,120]
[357267245,1743966647444,-151.0,0.00046276,120]
[357267246,1743966647454,-151.0,0.00046276,120]
[357267247,1743966647463,-151.0,0.00046276,120]
[357267248,1743966647473,-268.535276,0.00046276,120]
[357267249,1743966647482,-151.0,0.00046276,120]
[357267250,1743966647492,-151.0,0.00046276,120]
[357267251,1743966647502,-151.0,0.00046276,120]
[357267252,1743966647512,-151.0,0.00046276,120]
[357267253,1743966647522,-151.0,0.00046276,120]
[357267254,1743966647531,-151.0,0.00046276,120]
[357267255,1743966647541,-151.0,0.00046276,120]
[357267256,1743966647550,-151.0,0.00046276,120]
[357267257,1743966647561,-151.0,0.00046276,120]
[357267258,1743966647571,-151.0,0.00046276,120]
[357267259,1743966647581,-151.0,0.00046276,120]
[357267260,1743966647591,-164.067398,0.00046276,120]
[357267261,1743966647602,-500.0,0.00046276,20]
[357267262,1743966647614,-157.926232,0.00046276,61]
[357267263,1743966647623,-150.09,0.00046276,20]
[357267264,1743966647633,-151.0,0.00046276,120]
[357267265,1743966647642,-151.0,0.00046276,120]
[357267266,1743966647652,-162.888436,0.00046276,120]
[357267267,1743966647663,-151.0,0.00046276,120]
[357267268,1743966647675,-151.0,0.00046276,120]
[357267269,1743966647685,-151.0,0.00046276,120]
[357267270,1743966647695,-151.0,0.00046276,120]
[357267271,1743966647705,-151.0,0.00046276,120]
[357267272,1743966647715,-151.0,0.00046276,120]
[357267273,1743966647724,-151.0,0.00046276,120]
[357267274,1743966647733,-151.0,0.00046276,120]
[357267275,1743966647743,-151.0,0.00046276,120]
[357267276,1743966647754,-151.0,0.00046276,120]
[357267277,1743966647764,-233.33852,0.00046276,120]
[357267278,1743966647773,-19669.98537537,0.00046276,61]
[357267279,1743966647786,-323.02493646,0.00046276,61]
[357267280,1743966647828,-151.0,0.00035,14]
[357267281,1743966647838,-245.19575516,0.00046276,61]
[357267282,1743966647850,-11642.40610939,0.00046276,61]
[357267283,1743966647860,-16410.43299315,0.00046276,61]
[357267284,1743966647871,-1852.77829253,0.00046276,61]
[357267285,1743966647896,-3901.6439522,0.00046276,61]
[357267286,1743966647946,-468.903,0.00035277,2]
[357267287,1743966647956,-401.0,0.00038277,2]
[357267288,1743966647966,-401.0,0.00041277,2]
[357267289,1743966647976,-401.0,0.00044277,2]
[357267290,1743966647986,-14140.6826,0.00046276,61]
[357267291,1743966668362,174.742216,0.00013699,2]
[357267297,1743967661631,176.66766,0.00013699,2]
[357267329,1743967831887,-183.8430431,0.00021505,2]
[357267330,1743967831898,-300.0,0.00021537,2]
[357267331,1743967831908,-278.47617386,0.00021538,2]
[357267332,1743967831920,-13458.69635817,0.00021538,2]
[357267360,1743967838018,-268.735003,0.00021538,2]
[357267361,1743967838035,-703.815,0.00021538,2]
[357267362,1743967838135,-10190.27746497,0.00021538,2]
[357267363,1743967838145,-3055.84379914,0.00022427,2]
[357267364,1743967838154,-174.932998,0.00022436,2]
[357267365,1743967838164,-1298.41739536,0.00022473,2]
[357267366,1743967838174,-2850.17,0.00022526,3]
[357267367,1743967838184,-1425.08,0.00022526,3]
[357267368,1743967838194,-712.54,0.00022526,3]
[357267369,1743967838204,-10546.83968468,0.00022531,2]
[357267370,1743967838215,-10000.0,0.00022531,2]
[357267371,1743967838224,-151.0,0.00022531,2]
[357267372,1743967838235,-256.60969646,0.00022531,2]
[357267373,1743967838245,-223.4180849,0.00022535,2]
[357267374,1743967838255,-500.0,0.00022535,2]
[357267375,1743967838265,-500.0,0.00022535,2]
[357267376,1743967838275,-500.0,0.00022535,2]
[357267377,1743967838285,-500.0,0.00022535,2]
[357267378,1743967838295,-500.0,0.00022535,2]
[357267379,1743967838306,-500.0,0.00022535,2]
[357267380,1743967838317,-500.0,0.00022535,2]
[357267381,1743967838327,-213.1847531,0.00022535,2]
[357267382,1743967838574,-500.0,0.00022535,2]
[357267383,1743967838584,-500.0,0.00022535,2]
[357267384,1743967838594,-500.0,0.00022535,2]
[357267385,1743967838606,-499.99999999,0.00022535,2]
[357267386,1743967838616,-500.0,0.00022535,2]
[357267387,1743967838626,-500.0,0.00022535,2]
[357267388,1743967838636,-500.0,0.00022535,2]
[357267389,1743967838646,-1144.76261475,0.00022535,2]
[357267390,1743967838656,-500.0,0.00022535,2]
[357267391,1743967838668,-500.0,0.00022535,2]
[357267392,1743967838679,-1144.76261475,0.00022535,2]
[357267393,1743967838690,-500.0,0.00022535,2]
[357267394,1743967838702,-500.0,0.00022535,2]
[357267395,1743967838713,-1144.76261475,0.00022535,2]
[357267396,1743967838724,-500.0,0.00022535,2]
[357267397,1743967838735,-500.0,0.00022535,2]
[357267398,1743967838746,-500.0,0.00022535,2]
[357267399,1743967838756,-500.0,0.00022535,2]
[357267400,1743967838767,-1144.76261475,0.00022535,2]
[357267401,1743967838777,-500.0,0.00022535,2]
[357267402,1743967838787,-500.0,0.00022535,2]
[357267403,1743967838798,-500.0,0.00022535,2]
[357267404,1743967838808,-1144.76261475,0.00022535,2]
[357267405,1743967838819,-500.0,0.00022535,2]
[357267406,1743967838830,-500.0,0.00022535,2]
[357267407,1743967838840,-500.0,0.00022535,2]
[357267408,1743967838852,-1144.76261475,0.00022535,2]
[357267409,1743967838862,-500.0,0.00022535,2]
[357267410,1743967838872,-1144.76261475,0.00022535,2]
[357267411,1743967838881,-500.0,0.00022535,2]
[357267412,1743967838891,-500.0,0.00022535,2]
[357267413,1743967838901,-1144.76261475,0.00022535,2]
[357267414,1743967838911,-500.0,0.00022535,2]
[357267415,1743967838921,-1144.76261475,0.00022535,2]
[357267416,1743967838930,-500.0,0.00022535,2]
[357267417,1743967838940,-566.69330517,0.00022535,2]
[357267418,1743967838949,-500.0,0.00022535,2]
[357267419,1743967838959,-500.0,0.00022535,2]
[357267420,1743967838969,-1144.76261475,0.00022535,2]
[357267421,1743967838980,-500.0,0.00022535,2]
[357267422,1743967838990,-500.0,0.00022535,2]
[357267423,1743967839001,-1144.76261475,0.00022535,2]
[357267424,1743967839011,-500.0,0.00022535,2]
[357267425,1743967839022,-1144.76261475,0.00022535,2]
[357267426,1743967839033,-500.0,0.00022535,2]
[357267427,1743967839043,-500.0,0.00022535,2]
[357267428,1743967839054,-1144.76261475,0.00022535,2]
[357267429,1743967839064,-500.0,0.00022535,2]
[357267430,1743967839075,-500.0,0.00022535,2]
[357267431,1743967839085,-1144.76261475,0.00022535,2]
[357267432,1743967839095,-500.0,0.00022535,2]
[357267433,1743967839107,-500.0,0.00022535,2]
[357267434,1743967839118,-1144.76261475,0.00022535,2]
[357267435,1743967839128,-500.0,0.00022535,2]
[357267436,1743967839139,-500.0,0.00022535,2]
[357267437,1743967839152,-500.0,0.00022535,2]
[357267438,1743967839162,-500.0,0.00022535,2]
[357267439,1743967839171,-500.0,0.00022535,2]
[357267440,1743967839181,-500.0,0.00022535,2]
[357267441,1743967839190,-1144.76261475,0.00022535,2]
[357267442,1743967839200,-500.0,0.00022535,2]
[357267443,1743967839210,-500.0,0.00022535,2]
[357267444,1743967839220,-500.0,0.00022535,2]
[357267445,1743967839230,-1144.76261475,0.00022535,2]
[357267446,1743967839239,-500.0,0.00022535,2]
[357267447,1743967839249,-500.0,0.00022535,2]
[357267448,1743967839259,-1144.76261475,0.00022535,2]
[357267449,1743967839269,-500.0,0.00022535,2]
[357267450,1743967839279,-500.0,0.00022535,2]
[357267451,1743967839289,-1144.76261475,0.00022535,2]
[357267452,1743967839299,-500.0,0.00022535,2]
[357267453,1743967839309,-500.0,0.00022535,2]
[357267454,1743967839318,-1144.76261475,0.00022535,2]
[357267455,1743967839328,-500.0,0.00022535,2]
[357267456,1743967839338,-228.63478105,0.00022535,2]
[357267457,1743967839347,-1144.76261475,0.00022535,2]
[357267458,1743967839363,-500.0,0.00022535,2]
[357267460,1743967839372,-1144.76261475,0.00022535,2]
[357267462,1743967839381,-500.0,0.00022535,2]
[357267464,1743967839391,-500.0,0.00022535,2]
[357267465,1743967839400,-1144.76261475,0.00022535,2]
[357267466,1743967839409,-500.0,0.00022535,2]
[357267467,1743967839419,-1144.76261475,0.00022535,2]
[357267468,1743967839428,-500.0,0.00022535,2]
[357267469,1743967839438,-500.0,0.00022535,2]
[357267470,1743967839447,-1144.76261475,0.00022535,2]
[357267471,1743967839456,-500.0,0.00022535,2]
[357267472,1743967839466,-500.0,0.00022535,2]
[357267473,1743967839475,-500.0,0.00022535,2]
[357267474,1743967839484,-500.0,0.00022535,2]
[357267475,1743967839494,-500.0,0.00022535,2]
[357267477,1743967839504,-1144.76261475,0.00022535,2]
[357267478,1743967839514,-1144.76261475,0.00022535,2]
[357267479,1743967839523,-1144.76261475,0.00022535,2]
[357267480,1743967839533,-1144.76261475,0.00022535,2]
[357267481,1743967839543,-1144.76261475,0.00022535,2]
[357267482,1743967839553,-1144.76261475,0.00022535,2]
[357267483,1743967839562,-1144.76261475,0.00022535,2]
[357267484,1743967839573,-1144.76261475,0.00022535,2]
[357267485,1743967839582,-1144.76261475,0.00022535,2]
[357267486,1743967839592,-1144.76261475,0.00022535,2]
[357267487,1743967839606,-1144.76261475,0.00022535,2]
[357267488,1743967839617,-1144.76261475,0.00022535,2]
[357267489,1743967839627,-1144.76261475,0.00022535,2]
[357267490,1743967839637,-1144.76261475,0.00022535,2]
[357267491,1743967839647,-1144.76261475,0.00022535,2]
[357267492,1743967839658,-1144.76261475,0.00022535,2]
[357267494,1743967839670,-1144.76261475,0.00022535,2]
[357267496,1743967839680,-1144.76261475,0.00022535,2]
[357267498,1743967839692,-1144.76261475,0.00022535,2]
[357267499,1743967839702,-1144.76261475,0.00022535,2]
[357267500,1743967839713,-1144.76261475,0.00022535,2]
[357267501,1743967839723,-1144.76261475,0.00022535,2]
[357267502,1743967839734,-1144.76261475,0.00022535,2]
[357267503,1743967839744,-1144.76261475,0.00022535,2]
[357267504,1743967839754,-1144.76261475,0.00022535,2]
[357267505,1743967839764,-1144.76261475,0.00022535,2]
[357267506,1743967839774,-1144.76261475,0.00022535,2]
[357267507,1743967839783,-1144.76261475,0.00022535,2]
[357267508,1743967839794,-1144.76261475,0.00022535,2]
[357267509,1743967839804,-1144.76261475,0.00022535,2]
[357267510,1743967839814,-11732.0225871,0.0002254,2]
[357267511,1743967839824,-200.0,0.00022543,2]
[357267512,1743967839833,-500.0,0.00022543,2]
[357267513,1743967839843,-370000.0,0.00022545,2]
[357267514,1743967839857,-500.0,0.00022573,2]
[357267515,1743967839866,-390.31411185,0.00022573,2]
[357267516,1743967839876,-500.0,0.00022573,2]
[357267517,1743967839886,-500.0,0.00022573,2]
[357267518,1743967839896,-500.0,0.00022573,2]
[357267519,1743967839907,-500.0,0.00022573,2]
[357267520,1743967839917,-500.0,0.00022573,2]
[357267521,1743967839928,-500.0,0.00022573,2]
[357267522,1743967839938,-349.36611684,0.00022573,2]
[357267523,1743967839948,-503.36734113,0.00022573,2]